[Event "Titled Tuesday Blitz June 20 Late 2023"]
[White "FuenfgegenWilly"]
[Black "Calderin Gonzalez, Roberto"]
[BlackFideId "5102979"]
[WhiteElo "2419"]
[BlackElo "2116"]
[Result "1-0"]
[Round "2"]
[TimeControl "180+2"]
[Date "2023.06.20"]
[WhiteClock "0:02:22"]
[BlackClock "0:00:15"]
[Board "186"]

1. d4 {[%clk 0:03:00]}  d5 {[%clk 0:02:58]} 2. c4 {[%clk 0:03:01]}  e6 {[%clk 0:02:55]} 3. Nc3 {[%clk 0:03:01]}  Nf6 {[%clk 0:02:53]} 4. cxd5 {[%clk 0:03:01]}  Nxd5 {[%clk 0:02:47]} 5. e4 {[%clk 0:02:59]}  Nf6 {[%clk 0:02:40]} 6. Bg5 {[%clk 0:02:55]}  Be7 {[%clk 0:02:34]} 7. f4 {[%clk 0:02:53]}  O-O {[%clk 0:02:31]} 8. Nf3 {[%clk 0:02:53]}  h6 {[%clk 0:02:30]} 9. Bxf6 {[%clk 0:02:51]}  Bxf6 {[%clk 0:02:29]} 10. e5 {[%clk 0:02:52]}  Be7 {[%clk 0:02:29]} 11. Bd3 {[%clk 0:02:53]}  Nc6 {[%clk 0:02:17]} 12. a3 {[%clk 0:02:46]}  Kh8 {[%clk 0:02:12]} 13. Bc2 {[%clk 0:02:44]}  b6 {[%clk 0:02:08]} 14. h4 {[%clk 0:02:40]}  Ba6 {[%clk 0:01:59]} 15. b4 {[%clk 0:02:39]}  Bb7 {[%clk 0:01:44]} 16. h5 {[%clk 0:02:36]}  Nxb4 {[%clk 0:01:28]} 17. axb4 {[%clk 0:02:34]}  Bxb4 {[%clk 0:01:29]} 18. Qd3 {[%clk 0:02:31]}  Bxc3+ {[%clk 0:01:12]} 19. Kf2 {[%clk 0:02:22]}  g6 {[%clk 0:00:18]} 20. hxg6 {[%clk 0:02:22]}  Bxa1 {[%clk 0:00:18]} 21. g7+ {[%clk 0:02:21]}  Kxg7 {[%clk 0:00:15]} 22. Qh7# {[%clk 0:02:22]} 1-0


[Site "https://www.chess.com"]

[Event "Titled Tuesday Blitz June 20 Late 2023"]
[White "Kovalevsky, Stanislav"]
[Black "Schain, Randolph"]
[WhiteFideId "13508598"]
[BlackFideId "2003139"]
[WhiteElo "2112"]
[BlackElo "2123"]
[Result "1-0"]
[Round "2"]
[TimeControl "180+2"]
[Date "2023.06.20"]
[WhiteClock "0:01:09"]
[BlackClock "0:00:00"]
[Board "187"]

1. c4 {[%clk 0:03:00]}  Nf6 {[%clk 0:02:57]} 2. Nc3 {[%clk 0:03:00]}  g6 {[%clk 0:02:56]} 3. g3 {[%clk 0:03:00]}  Bg7 {[%clk 0:02:56]} 4. Bg2 {[%clk 0:03:01]}  d6 {[%clk 0:02:56]} 5. e4 {[%clk 0:02:59]}  O-O {[%clk 0:02:55]} 6. Nge2 {[%clk 0:03:00]}  c5 {[%clk 0:02:54]} 7. O-O {[%clk 0:03:00]}  Nc6 {[%clk 0:02:52]} 8. a3 {[%clk 0:03:01]}  Be6 {[%clk 0:02:47]} 9. d3 {[%clk 0:03:01]}  Qd7 {[%clk 0:02:47]} 10. Nf4 {[%clk 0:03:00]}  Bg4 {[%clk 0:02:37]} 11. f3 {[%clk 0:03:00]}  Be6 {[%clk 0:02:31]} 12. Rb1 {[%clk 0:02:59]}  a5 {[%clk 0:02:20]} 13. Bd2 {[%clk 0:02:58]}  Nd4 {[%clk 0:02:13]} 14. b4 {[%clk 0:02:53]}  axb4 {[%clk 0:02:12]} 15. axb4 {[%clk 0:02:53]}  b6 {[%clk 0:02:07]} 16. Nxe6 {[%clk 0:02:50]}  fxe6 {[%clk 0:02:06]} 17. e5 {[%clk 0:02:49]}  Nh5 {[%clk 0:01:59]} 18. f4 {[%clk 0:02:43]}  Ra3 {[%clk 0:01:51]} 19. bxc5 {[%clk 0:02:40]}  dxe5 {[%clk 0:01:37]} 20. cxb6 {[%clk 0:02:32]}  exf4 {[%clk 0:01:37]} 21. g4 {[%clk 0:02:31]}  f3 {[%clk 0:01:26]} 22. b7 {[%clk 0:02:18]}  Rb8 {[%clk 0:01:15]} 23. Bxf3 {[%clk 0:02:10]}  Nxf3+ {[%clk 0:01:03]} 24. Qxf3 {[%clk 0:02:11]}  Nf6 {[%clk 0:00:58]} 25. Bf4 {[%clk 0:02:02]}  Qd4+ {[%clk 0:00:54]} 26. Kh1 {[%clk 0:01:58]}  e5 {[%clk 0:00:53]} 27. Nb5 {[%clk 0:01:54]}  Qxd3 {[%clk 0:00:33]} 28. Nxa3 {[%clk 0:01:48]}  Qxf3+ {[%clk 0:00:28]} 29. Rxf3 {[%clk 0:01:48]}  exf4 {[%clk 0:00:27]} 30. Rxf4 {[%clk 0:01:44]}  Nd7 {[%clk 0:00:24]} 31. Re4 {[%clk 0:01:42]}  Kf7 {[%clk 0:00:18]} 32. Nb5 {[%clk 0:01:42]}  Nc5 {[%clk 0:00:15]} 33. Re2 {[%clk 0:01:38]}  Rxb7 {[%clk 0:00:12]} 34. Nd6+ {[%clk 0:01:39]}  exd6 {[%clk 0:00:11]} 35. Rxb7+ {[%clk 0:01:39]}  Nxb7 {[%clk 0:00:11]} 36. Ra2 {[%clk 0:01:39]}  Nc5 {[%clk 0:00:11]} 37. Ra7+ {[%clk 0:01:38]}  Kf8 {[%clk 0:00:10]} 38. Kg1 {[%clk 0:01:36]}  Bd4+ {[%clk 0:00:09]} 39. Kg2 {[%clk 0:01:36]}  h5 {[%clk 0:00:07]} 40. gxh5 {[%clk 0:01:33]}  gxh5 {[%clk 0:00:07]} 41. Kf3 {[%clk 0:01:34]}  Bg1 {[%clk 0:00:05]} 42. h3 {[%clk 0:01:33]}  Ne6 {[%clk 0:00:03]} 43. Rd7 {[%clk 0:01:29]}  Bc5 {[%clk 0:00:01]} 44. h4 {[%clk 0:01:20]}  Ng7 {[%clk 0:00:01]} 45. Ke4 {[%clk 0:01:18]}  Bb4 {[%clk 0:00:02]} 46. Rb7 {[%clk 0:01:12]}  Bc5 {[%clk 0:00:02]} 47. Kf4 {[%clk 0:01:09]}  Ba3 {[%clk 0:00:01]} 48. Kg5 {[%clk 0:01:10]}  Bc5 {[%clk 0:00:00]} 49. Kg6 {[%clk 0:01:09]} 1-0


[Site "https://www.chess.com"]

[Event "Titled Tuesday Blitz June 20 Late 2023"]
[White "Sanchez, Robert"]
[Black "i_like_explosions"]
[WhiteFideId "2034360"]
[WhiteElo "2052"]
[BlackElo "2414"]
[Result "1-0"]
[Round "2"]
[TimeControl "180+2"]
[Date "2023.06.20"]
[WhiteClock "0:00:15"]
[BlackClock "0:00:25"]
[Board "189"]

1. Nf3 {[%clk 0:03:00]}  Nf6 {[%clk 0:03:00]} 2. e3 {[%clk 0:03:01]}  g6 {[%clk 0:03:00]} 3. c4 {[%clk 0:03:01]}  Bg7 {[%clk 0:03:00]} 4. Nc3 {[%clk 0:03:02]}  d6 {[%clk 0:03:01]} 5. d4 {[%clk 0:03:03]}  O-O {[%clk 0:03:01]} 6. Be2 {[%clk 0:03:03]}  c5 {[%clk 0:03:02]} 7. O-O {[%clk 0:03:04]}  cxd4 {[%clk 0:03:02]} 8. exd4 {[%clk 0:03:04]}  Bf5 {[%clk 0:03:02]} 9. h3 {[%clk 0:03:04]}  a6 {[%clk 0:03:02]} 10. Qb3 {[%clk 0:03:02]}  Qc7 {[%clk 0:03:01]} 11. Bg5 {[%clk 0:03:00]}  h6 {[%clk 0:03:00]} 12. Bxf6 {[%clk 0:02:59]}  Bxf6 {[%clk 0:03:00]} 13. Nd5 {[%clk 0:03:00]}  Qc6 {[%clk 0:02:54]} 14. Rac1 {[%clk 0:02:53]}  Nd7 {[%clk 0:02:50]} 15. Nxf6+ {[%clk 0:02:53]}  Nxf6 {[%clk 0:02:50]} 16. Nh4 {[%clk 0:02:53]}  Bd7 {[%clk 0:02:47]} 17. Bf3 {[%clk 0:02:52]}  Qc7 {[%clk 0:02:44]} 18. g4 {[%clk 0:02:44]}  g5 {[%clk 0:02:42]} 19. Ng2 {[%clk 0:02:43]}  Rab8 {[%clk 0:02:41]} 20. Rfe1 {[%clk 0:02:43]}  e6 {[%clk 0:02:39]} 21. Qc3 {[%clk 0:02:32]}  Qd8 {[%clk 0:02:34]} 22. Qe3 {[%clk 0:02:30]}  Kg7 {[%clk 0:02:32]} 23. h4 {[%clk 0:02:29]}  gxh4 {[%clk 0:02:28]} 24. g5 {[%clk 0:02:24]}  hxg5 {[%clk 0:02:23]} 25. Qxg5+ {[%clk 0:02:24]}  Kh8 {[%clk 0:02:23]} 26. Be4 {[%clk 0:02:08]}  Nxe4 {[%clk 0:01:45]} 27. Qh6+ {[%clk 0:02:00]}  Kg8 {[%clk 0:01:45]} 28. Rxe4 {[%clk 0:01:58]}  f5 {[%clk 0:01:42]} 29. Rxh4 {[%clk 0:01:50]}  Qe7 {[%clk 0:01:24]} 30. Rh5 {[%clk 0:01:34]}  Kf7 {[%clk 0:00:57]} 31. Nf4 {[%clk 0:01:11]}  Qf6 {[%clk 0:00:47]} 32. Qh7+ {[%clk 0:01:07]}  Qg7+ {[%clk 0:00:47]} 33. Qxg7+ {[%clk 0:01:07]}  Kxg7 {[%clk 0:00:48]} 34. Rc3 {[%clk 0:01:05]}  Rh8 {[%clk 0:00:45]} 35. Rg3+ {[%clk 0:01:03]}  Kf6 {[%clk 0:00:45]} 36. Rg6+ {[%clk 0:01:00]}  Kf7 {[%clk 0:00:46]} 37. Rhg5 {[%clk 0:00:59]}  Rbg8 {[%clk 0:00:40]} 38. Kf1 {[%clk 0:00:40]}  Rxg6 {[%clk 0:00:32]} 39. Rxg6 {[%clk 0:00:40]}  Rh1+ {[%clk 0:00:32]} 40. Kg2 {[%clk 0:00:34]}  Rc1 {[%clk 0:00:31]} 41. b3 {[%clk 0:00:28]}  Rc2 {[%clk 0:00:30]} 42. a4 {[%clk 0:00:26]}  Rb2 {[%clk 0:00:29]} 43. Rg3 {[%clk 0:00:25]}  Kf6 {[%clk 0:00:24]} 44. Nh5+ {[%clk 0:00:20]}  Kf7 {[%clk 0:00:22]} 45. Rg7+ {[%clk 0:00:19]}  Ke8 {[%clk 0:00:22]} 46. Nf6+ {[%clk 0:00:19]}  Kd8 {[%clk 0:00:22]} 47. Rxd7+ {[%clk 0:00:18]}  Kc8 {[%clk 0:00:23]} 48. Rxd6 {[%clk 0:00:18]}  Rxb3 {[%clk 0:00:23]} 49. Rxe6 {[%clk 0:00:17]}  Rb4 {[%clk 0:00:24]} 50. Re8+ {[%clk 0:00:14]}  Kc7 {[%clk 0:00:24]} 51. Nd5+ {[%clk 0:00:14]}  Kd7 {[%clk 0:00:24]} 52. Nxb4 {[%clk 0:00:15]}  Kxe8 {[%clk 0:00:25]} 53. Kf3 {[%clk 0:00:15]}  Kd7 {[%clk 0:00:25]} 54. Kf4 {[%clk 0:00:16]}  Ke6 {[%clk 0:00:25]} 55. Nd3 {[%clk 0:00:15]} 1-0


[Site "https://www.chess.com"]

[Event "Titled Tuesday Blitz June 20 Late 2023"]
[White "Luo, Terry"]
[Black "Burke, Paul"]
[WhiteFideId "30931045"]
[BlackFideId "2605767"]
[WhiteElo "2265"]
[BlackElo "1915"]
[Result "1-0"]
[Round "2"]
[TimeControl "180+2"]
[Date "2023.06.20"]
[WhiteClock "0:01:28"]
[BlackClock "0:00:00"]
[Board "194"]

1. e4 {[%clk 0:03:00]}  e5 {[%clk 0:02:38]} 2. Nf3 {[%clk 0:02:59]}  Nc6 {[%clk 0:02:38]} 3. Bc4 {[%clk 0:03:00]}  Be7 {[%clk 0:02:38]} 4. O-O {[%clk 0:03:00]}  Nf6 {[%clk 0:02:37]} 5. d3 {[%clk 0:03:01]}  O-O {[%clk 0:02:37]} 6. c3 {[%clk 0:03:01]}  d6 {[%clk 0:02:37]} 7. h3 {[%clk 0:02:58]}  Be6 {[%clk 0:02:36]} 8. Nbd2 {[%clk 0:02:58]}  d5 {[%clk 0:02:32]} 9. Bb3 {[%clk 0:02:56]}  dxe4 {[%clk 0:02:16]} 10. dxe4 {[%clk 0:02:54]}  Bxb3 {[%clk 0:02:15]} 11. axb3 {[%clk 0:02:53]}  h6 {[%clk 0:02:12]} 12. Qe2 {[%clk 0:02:53]}  Bd6 {[%clk 0:02:11]} 13. b4 {[%clk 0:02:51]}  a6 {[%clk 0:02:10]} 14. Nc4 {[%clk 0:02:49]}  Qe7 {[%clk 0:02:10]} 15. Rd1 {[%clk 0:02:48]}  Rad8 {[%clk 0:02:07]} 16. Bd2 {[%clk 0:02:44]}  Nh5 {[%clk 0:02:00]} 17. Be3 {[%clk 0:02:43]}  Nf4 {[%clk 0:01:58]} 18. Bxf4 {[%clk 0:02:44]}  exf4 {[%clk 0:01:58]} 19. e5 {[%clk 0:02:40]}  Rfe8 {[%clk 0:01:48]} 20. Re1 {[%clk 0:02:18]}  f6 {[%clk 0:01:46]} 21. e6 {[%clk 0:02:01]}  Ne5 {[%clk 0:01:39]} 22. Ncxe5 {[%clk 0:01:55]}  fxe5 {[%clk 0:01:38]} 23. b5 {[%clk 0:01:50]}  axb5 {[%clk 0:01:36]} 24. Qxb5 {[%clk 0:01:49]}  Qxe6 {[%clk 0:01:16]} 25. Qxb7 {[%clk 0:01:49]}  Rb8 {[%clk 0:01:14]} 26. Qe4 {[%clk 0:01:49]}  Rxb2 {[%clk 0:01:11]} 27. Rab1 {[%clk 0:01:49]}  Reb8 {[%clk 0:01:09]} 28. Rxb2 {[%clk 0:01:48]}  Rxb2 {[%clk 0:01:08]} 29. Nxe5 {[%clk 0:01:48]}  Bxe5 {[%clk 0:01:03]} 30. Qxe5 {[%clk 0:01:47]}  Qxe5 {[%clk 0:00:58]} 31. Rxe5 {[%clk 0:01:47]}  Rb7 {[%clk 0:00:47]} 32. Rf5 {[%clk 0:01:34]}  g5 {[%clk 0:00:46]} 33. Rc5 {[%clk 0:01:31]}  Kg7 {[%clk 0:00:32]} 34. Kf1 {[%clk 0:01:29]}  Rb1+ {[%clk 0:00:29]} 35. Ke2 {[%clk 0:01:30]}  Rb2+ {[%clk 0:00:29]} 36. Kf3 {[%clk 0:01:30]}  Rb7 {[%clk 0:00:26]} 37. Kg4 {[%clk 0:01:29]}  Kg6 {[%clk 0:00:26]} 38. Rc6+ {[%clk 0:01:28]}  Kg7 {[%clk 0:00:25]} 39. h4 {[%clk 0:01:29]}  gxh4 {[%clk 0:00:18]} 40. Kxf4 {[%clk 0:01:29]}  Ra7 {[%clk 0:00:07]} 41. Kg4 {[%clk 0:01:28]}  Ra4+ {[%clk 0:00:00]} 42. c4 {[%clk 0:01:28]} 1-0


[Site "https://www.chess.com"]

[Event "Titled Tuesday Blitz June 20 Late 2023"]
[White "Gyulamiryan-koryun"]
[Black "Omariev, Maksim"]
[BlackFideId "4193423"]
[WhiteElo "1884"]
[BlackElo "2403"]
[Result "0-1"]
[Round "2"]
[TimeControl "180+2"]
[Date "2023.06.20"]
[WhiteClock "0:00:09"]
[BlackClock "0:00:15"]
[Board "195"]

1. e4 {[%clk 0:02:57]}  c5 {[%clk 0:00:15]} 2. Nf3 {[%clk 0:02:55]}  d6 {[%clk 0:00:15]} 3. d4 {[%clk 0:02:54]}  cxd4 {[%clk 0:00:16]} 4. Nxd4 {[%clk 0:02:53]}  Nf6 {[%clk 0:00:16]} 5. Nc3 {[%clk 0:02:53]}  a6 {[%clk 0:00:17]} 6. Be3 {[%clk 0:02:52]}  Ng4 {[%clk 0:00:17]} 7. Bc1 {[%clk 0:02:50]}  Nf6 {[%clk 0:00:17]} 8. f3 {[%clk 0:02:50]}  e6 {[%clk 0:00:17]} 9. Be3 {[%clk 0:02:50]}  b5 {[%clk 0:00:18]} 10. a3 {[%clk 0:02:49]}  Nbd7 {[%clk 0:00:18]} 11. Qd2 {[%clk 0:02:48]}  Bb7 {[%clk 0:00:19]} 12. O-O-O {[%clk 0:02:48]}  Be7 {[%clk 0:00:19]} 13. g4 {[%clk 0:02:47]}  Nb6 {[%clk 0:00:20]} 14. h4 {[%clk 0:02:46]}  Nfd7 {[%clk 0:00:20]} 15. Qf2 {[%clk 0:02:45]}  Ne5 {[%clk 0:00:20]} 16. Nxe6 {[%clk 0:02:38]}  fxe6 {[%clk 0:00:20]} 17. Bxb6 {[%clk 0:02:38]}  Qc8 {[%clk 0:00:21]} 18. Bg2 {[%clk 0:02:32]}  O-O {[%clk 0:00:21]} 19. Qe3 {[%clk 0:02:25]}  Nc4 {[%clk 0:00:21]} 20. Qg1 {[%clk 0:02:22]}  Nxa3 {[%clk 0:00:21]} 21. Qd4 {[%clk 0:02:12]}  Nc4 {[%clk 0:00:18]} 22. g5 {[%clk 0:02:08]}  Qc6 {[%clk 0:00:16]} 23. Ba7 {[%clk 0:02:05]}  Rfc8 {[%clk 0:00:11]} 24. Rd3 {[%clk 0:02:04]}  b4 {[%clk 0:00:10]} 25. Nb1 {[%clk 0:01:54]}  Ne3 {[%clk 0:00:09]} 26. c3 {[%clk 0:01:47]}  Nxg2 {[%clk 0:00:08]} 27. Rg1 {[%clk 0:01:42]}  Nf4 {[%clk 0:00:08]} 28. Re3 {[%clk 0:01:41]}  e5 {[%clk 0:00:08]} 29. Qb6 {[%clk 0:01:40]}  Qd7 {[%clk 0:00:02]} 30. Rd1 {[%clk 0:01:36]}  bxc3 {[%clk 0:00:02]} 31. Rxc3 {[%clk 0:01:34]}  Bc6 {[%clk 0:00:02]} 32. Qb3+ {[%clk 0:01:18]}  Kh8 {[%clk 0:00:02]} 33. Be3 {[%clk 0:01:17]}  Ne2+ {[%clk 0:00:02]} 34. Kd2 {[%clk 0:01:11]}  Nxc3 {[%clk 0:00:03]} 35. Nxc3 {[%clk 0:01:08]}  Rab8 {[%clk 0:00:04]} 36. Qa2 {[%clk 0:01:03]}  Qb7 {[%clk 0:00:05]} 37. Rb1 {[%clk 0:00:58]}  Bd8 {[%clk 0:00:05]} 38. Nd5 {[%clk 0:00:57]}  Bxd5 {[%clk 0:00:05]} 39. Qxd5 {[%clk 0:00:56]}  Qxd5+ {[%clk 0:00:04]} 40. exd5 {[%clk 0:00:56]}  Bb6 {[%clk 0:00:05]} 41. f4 {[%clk 0:00:48]}  Bxe3+ {[%clk 0:00:05]} 42. Kxe3 {[%clk 0:00:48]}  Rb3+ {[%clk 0:00:06]} 43. Ke4 {[%clk 0:00:48]}  Rb4+ {[%clk 0:00:06]} 44. Kf5 {[%clk 0:00:48]}  Rxf4+ {[%clk 0:00:06]} 45. Ke6 {[%clk 0:00:48]}  e4 {[%clk 0:00:04]} 46. h5 {[%clk 0:00:47]}  e3 {[%clk 0:00:05]} 47. Kxd6 {[%clk 0:00:46]}  e2 {[%clk 0:00:05]} 48. Re1 {[%clk 0:00:45]}  Re8 {[%clk 0:00:05]} 49. g6 {[%clk 0:00:42]}  Rf1 {[%clk 0:00:04]} 50. Rxe2 {[%clk 0:00:37]}  Rxe2 {[%clk 0:00:05]} 51. gxh7 {[%clk 0:00:37]}  Rd1 {[%clk 0:00:05]} 52. Kc6 {[%clk 0:00:36]}  Rxb2 {[%clk 0:00:05]} 53. d6 {[%clk 0:00:36]}  Rc2+ {[%clk 0:00:05]} 54. Kb6 {[%clk 0:00:35]}  Rcd2 {[%clk 0:00:06]} 55. Kxa6 {[%clk 0:00:33]}  Rxd6+ {[%clk 0:00:07]} 56. Kb5 {[%clk 0:00:33]}  Rh6 {[%clk 0:00:08]} 57. Kc4 {[%clk 0:00:32]}  Kxh7 {[%clk 0:00:09]} 58. Kc3 {[%clk 0:00:31]}  Rg1 {[%clk 0:00:10]} 59. Kd3 {[%clk 0:00:31]}  Rg5 {[%clk 0:00:10]} 60. Ke4 {[%clk 0:00:32]}  Rhxh5 {[%clk 0:00:11]} 61. Kf4 {[%clk 0:00:32]}  Kg6 {[%clk 0:00:12]} 62. Kf3 {[%clk 0:00:32]}  Kf6 {[%clk 0:00:13]} 63. Kf4 {[%clk 0:00:32]}  Rh4+ {[%clk 0:00:14]} 64. Kf3 {[%clk 0:00:09]}  Ra4 {[%clk 0:00:15]} 0-1


[Site "https://www.chess.com"]

[Event "Titled Tuesday Blitz June 20 Late 2023"]
[White "Oro, Faustino"]
[Black "Nakamura, Hikaru"]
[WhiteFideId "20000197"]
[BlackFideId "2016192"]
[WhiteElo "1984"]
[BlackElo "2874"]
[Result "0-1"]
[Round "3"]
[TimeControl "180+2"]
[Date "2023.06.20"]
[WhiteClock "0:00:13"]
[BlackClock "0:01:00"]
[Board "2"]

1. e4 {[%clk 0:03:00]}  g6 {[%clk 0:02:59]} 2. d4 {[%clk 0:02:59]}  Bg7 {[%clk 0:02:58]} 3. Nc3 {[%clk 0:02:59]}  a6 {[%clk 0:02:58]} 4. f4 {[%clk 0:02:56]}  b5 {[%clk 0:02:57]} 5. Nf3 {[%clk 0:02:55]}  d6 {[%clk 0:02:57]} 6. Bd3 {[%clk 0:02:53]}  Nd7 {[%clk 0:02:57]} 7. O-O {[%clk 0:02:48]}  c5 {[%clk 0:02:57]} 8. dxc5 {[%clk 0:02:47]}  Nxc5 {[%clk 0:02:58]} 9. Be3 {[%clk 0:02:32]}  Bb7 {[%clk 0:02:57]} 10. Bxc5 {[%clk 0:02:16]}  Bxc3 {[%clk 0:02:51]} 11. Ba3 {[%clk 0:01:57]}  Bg7 {[%clk 0:02:49]} 12. c3 {[%clk 0:01:52]}  Nf6 {[%clk 0:02:48]} 13. Qe2 {[%clk 0:01:52]}  O-O {[%clk 0:02:48]} 14. Rad1 {[%clk 0:01:52]}  Qb6+ {[%clk 0:02:47]} 15. Kh1 {[%clk 0:01:52]}  Rad8 {[%clk 0:02:34]} 16. Rde1 {[%clk 0:01:18]}  Rfe8 {[%clk 0:02:30]} 17. f5 {[%clk 0:01:10]}  e5 {[%clk 0:02:23]} 18. fxe6 {[%clk 0:01:09]}  Rxe6 {[%clk 0:02:21]} 19. Nd4 {[%clk 0:01:07]}  Ree8 {[%clk 0:02:19]} 20. Qf2 {[%clk 0:01:05]}  Rd7 {[%clk 0:02:16]} 21. Qf4 {[%clk 0:00:54]}  Nh5 {[%clk 0:02:05]} 22. Qf3 {[%clk 0:00:52]}  Bxd4 {[%clk 0:01:23]} 23. cxd4 {[%clk 0:00:53]}  b4 {[%clk 0:01:24]} 24. Bc4 {[%clk 0:00:42]}  d5 {[%clk 0:01:24]} 25. exd5 {[%clk 0:00:33]}  Rxe1 {[%clk 0:01:23]} 26. Rxe1 {[%clk 0:00:34]}  bxa3 {[%clk 0:01:24]} 27. Re8+ {[%clk 0:00:29]}  Kg7 {[%clk 0:01:24]} 28. Qxa3 {[%clk 0:00:30]}  Qd6 {[%clk 0:01:21]} 29. Qc5 {[%clk 0:00:24]}  Nf6 {[%clk 0:01:15]} 30. Re5 {[%clk 0:00:20]}  Bxd5 {[%clk 0:01:11]} 31. Bxd5 {[%clk 0:00:18]}  Nxd5 {[%clk 0:01:11]} 32. h3 {[%clk 0:00:17]}  Nf4 {[%clk 0:01:06]} 33. Re4 {[%clk 0:00:15]}  Ne6 {[%clk 0:01:05]} 34. Qe5+ {[%clk 0:00:12]}  Qxe5 {[%clk 0:01:05]} 35. dxe5 {[%clk 0:00:13]}  Rd1+ {[%clk 0:01:05]} 36. Kh2 {[%clk 0:00:14]}  Rd2 {[%clk 0:01:06]} 37. Ra4 {[%clk 0:00:13]}  Rxb2 {[%clk 0:01:05]} 38. Rxa6 {[%clk 0:00:14]}  Rb5 {[%clk 0:01:05]} 39. a4 {[%clk 0:00:13]}  Rxe5 {[%clk 0:01:05]} 40. a5 {[%clk 0:00:14]}  Rb5 {[%clk 0:01:03]} 41. Ra7 {[%clk 0:00:15]}  h5 {[%clk 0:01:03]} 42. a6 {[%clk 0:00:15]}  Ra5 {[%clk 0:01:03]} 43. Ra8 {[%clk 0:00:15]}  Nc7 {[%clk 0:01:00]} 44. Rc8 {[%clk 0:00:15]}  Nxa6 {[%clk 0:01:00]} 45. Ra8 {[%clk 0:00:13]}  Ra2 {[%clk 0:01:00]} 0-1


[Site "https://www.chess.com"]

[Event "Titled Tuesday Blitz June 20 Late 2023"]
[White "Paravyan, David"]
[Black "Daggupati, Balaji"]
[WhiteFideId "4194985"]
[BlackFideId "2090759"]
[WhiteElo "2563"]
[BlackElo "2709"]
[Result "1-0"]
[Round "3"]
[TimeControl "180+2"]
[Date "2023.06.20"]
[WhiteClock "0:02:03"]
[BlackClock "0:01:27"]
[Board "4"]

1. e4 {[%clk 0:03:00]}  c5 {[%clk 0:03:00]} 2. Nf3 {[%clk 0:03:00]}  e6 {[%clk 0:03:00]} 3. d4 {[%clk 0:03:01]}  cxd4 {[%clk 0:03:01]} 4. Nxd4 {[%clk 0:03:01]}  Nf6 {[%clk 0:03:02]} 5. Nc3 {[%clk 0:03:01]}  Nc6 {[%clk 0:03:03]} 6. Nxc6 {[%clk 0:03:02]}  bxc6 {[%clk 0:03:03]} 7. e5 {[%clk 0:03:02]}  Nd5 {[%clk 0:03:04]} 8. Ne4 {[%clk 0:03:03]}  Qc7 {[%clk 0:03:05]} 9. f4 {[%clk 0:03:03]}  Qb6 {[%clk 0:03:05]} 10. c4 {[%clk 0:03:04]}  Ne3 {[%clk 0:03:05]} 11. Qd3 {[%clk 0:03:02]}  Nf5 {[%clk 0:03:05]} 12. Bd2 {[%clk 0:02:52]}  Qxb2 {[%clk 0:02:53]} 13. Rb1 {[%clk 0:02:50]}  Qxa2 {[%clk 0:02:49]} 14. Kf2 {[%clk 0:02:36]}  Qa3 {[%clk 0:02:31]} 15. g4 {[%clk 0:02:09]}  Bc5+ {[%clk 0:02:05]} 16. Nxc5 {[%clk 0:02:06]}  Qxc5+ {[%clk 0:02:06]} 17. Kf3 {[%clk 0:02:06]}  Ne7 {[%clk 0:01:47]} 18. Bb4 {[%clk 0:02:03]}  Qb6 {[%clk 0:01:27]} 19. Bxe7 {[%clk 0:02:03]} 1-0


[Site "https://www.chess.com"]